Cogmind - Beta 14 --- EXPLORER MODE // 2024.08.24 @ 12:22:15 // Winter2019/RPGLIKE Player: Gnomed! Result: Destroyed Tau Ceti IV! Performance ------------- Evolutions (9) 4500 Regions Visited (18) 3600 Robots Destroyed (192) 960 Value Destroyed (11836) 11836 Prototype IDs (289) 5780 Alien Tech Used (12) 2400 Bonus (53077) 53077 TOTAL SCORE: 82153 Bonus ------- Triggered High Security 500 Triggered Max Security 2000 High Alert Combat Kills 2429 Follower Combat Kills 54 Entered DSFs 1000 Used Core Reset Matrix 3000 Scanned by Researcher 1000 Pursued by Intercept 500 Integrated Exoskeleton 5000 Destroyed MAIN.C Guards 500 Met MAIN.C 5000 Destroyed MAIN.C Shell 5000 Destroyed MAIN.C 10000 Met Architect 300 Started Test 138-B 500 Started Test 138-C 8000 Destroyed A8 300 Destroyed A6 400 Destroyed A2 1000 Win 3000 Win Speed 3683 Friendly Fire -89 Cogmind --------- Core Integrity 15506/19550 Matter 4796/5025 Energy 16115/16115 System Corruption 0% Temperature Cool (0) Movement Walking (70) Location Subspace Parts ------- > --- POWER (1) -------- Neutrino Core > --- PROPULSION (4) --- Biometal Leg Sigix Exoskeleton > --- UTILITY (13) ----- Improved Terrain Scanner Experimental Core Analyzer Advanced Transmission Jammer Advanced Phase Shifter Advanced Cloaking Device SHELL Armor Advanced Thermal Shield Experimental EM Disruption Field Advanced Force Field Long-range Tractor Beam Long-range Tractor Beam > --- WEAPON (8) ------- Sigix Sheargun Sigix Sheargun Sigix Sheargun Heavy Hardcell Cannon Compact Linear Accelerator Compact Linear Accelerator Compact Linear Accelerator > --- INVENTORY (211) -- Matter Drive Centrium Leg Flight Unit Flight Unit VTOL Module Cesium-ion Thruster Surge Thruster Surge Thruster Nuclear Pulse Thruster Nuclear Pulse Thruster Nuclear Pulse Thruster Nuclear Pulse Thruster Nuclear Pulse Thruster Nuclear Pulse Thruster Improved Surge Thruster Improved Surge Thruster Improved Surge Thruster Improved Surge Thruster Field Propulsion Drive Field Propulsion Drive Field Propulsion Drive Field Propulsion Drive Field Propulsion Drive Cooled Field Propulsion Drive Light Regenerative Plating Medium Regenerative Plating Heavy Regenerative Plating Long-range Tractor Beam Transdimensional Reconstructor Transdimensional Reconstructor Transdimensional Reconstructor High-powered Transdimensional Reconstructor High-powered Transdimensional Reconstructor Terrabomb Spacefold Activator Microwarp Drive Drained L-Cannon Advanced Assault Cannon Advanced Assault Cannon Antimatter Cannon Antimatter Cannon Antimatter Cannon Enhanced Gauss Cannon Hardcell Cannon Linear Accelerator Compact Linear Accelerator Compact Linear Accelerator Compact Linear Accelerator Fusion Bomb Launcher Fusion Bomb Launcher Fusion Bomb Launcher Fusion Bomb Launcher Fusion Bomb Launcher Fusion Bomb Launcher Fusion Bomb Launcher Fusion Bomb Launcher Fusion Bomb Launcher Fusion Bomb Launcher Fusion Bomb Launcher Fusion Bomb Launcher Peak State ------------ > --- POWER ------------ Neutrino Core > --- PROPULSION ------- Biometal Leg Sigix Exoskeleton > --- UTILITY ---------- Improved Terrain Scanner Experimental Core Analyzer Advanced Transmission Jammer Advanced Phase Shifter Advanced Cloaking Device SHELL Armor Advanced Thermal Shield Experimental EM Disruption Field Advanced Force Field Long-range Tractor Beam Long-range Tractor Beam > --- WEAPON ----------- Sigix Sheargun Sigix Sheargun Sigix Sheargun Heavy Hardcell Cannon Compact Linear Accelerator Compact Linear Accelerator Compact Linear Accelerator > --- INVENTORY -------- Matter Drive Centrium Leg Flight Unit Flight Unit VTOL Module Cesium-ion Thruster Surge Thruster Surge Thruster Nuclear Pulse Thruster Nuclear Pulse Thruster Nuclear Pulse Thruster Nuclear Pulse Thruster Nuclear Pulse Thruster Nuclear Pulse Thruster Improved Surge Thruster Improved Surge Thruster Improved Surge Thruster Improved Surge Thruster Field Propulsion Drive Field Propulsion Drive Field Propulsion Drive Field Propulsion Drive Field Propulsion Drive Cooled Field Propulsion Drive Light Regenerative Plating Medium Regenerative Plating Heavy Regenerative Plating Long-range Tractor Beam Transdimensional Reconstructor Transdimensional Reconstructor Transdimensional Reconstructor High-powered Transdimensional Reconstructor High-powered Transdimensional Reconstructor Terrabomb Spacefold Activator Microwarp Drive Drained L-Cannon Advanced Assault Cannon Advanced Assault Cannon Antimatter Cannon Antimatter Cannon Antimatter Cannon Enhanced Gauss Cannon Hardcell Cannon Linear Accelerator Compact Linear Accelerator Compact Linear Accelerator Compact Linear Accelerator Fusion Bomb Launcher Fusion Bomb Launcher Fusion Bomb Launcher Fusion Bomb Launcher Fusion Bomb Launcher Fusion Bomb Launcher Fusion Bomb Launcher Fusion Bomb Launcher Fusion Bomb Launcher Fusion Bomb Launcher Fusion Bomb Launcher Fusion Bomb Launcher [Rating: 413] Favorites ----------- Power Neutrino Core Power Core Neutrino Core Propulsion Surge Thruster Leg Sigix Exoskeleton Flight Unit Surge Thruster Utility Improved Terrain Scanner Device Improved Terrain Scanner Processor Experimental Core Analyzer Hackware Ghost Barrier Protection SHELL Armor Artifact Core Physics Calibrator Weapon Antimatter Cannon Energy Gun Sigix Sheargun Energy Cannon Particle Cannon Ballistic Gun Light Assault Rifle Ballistic Cannon Antimatter Cannon Build | -11 -10 -9 -8 -7 -7 -6 -5 -5 -4 -4 -3 -3 -2 -2 -2 -1 -1 -1 ------- Run | Yrd Mat Mat Mat Fac DSF Fac Fac DSF Fac Arm Res Tes Res Qua Sec Acc Com Ac0 Slots Evolved 39 | 22 . . . . . . . . . . . . . . 17 . . . Power . | . . . . . . . . . . . . . . . . . . . Propulsion 4 | 3 . . . . . . . . . . . . . . 1 . . . Utility 22 | 12 . . . . . . . . . . . . . . 10 . . . Weapon 13 | 7 . . . . . . . . . . . . . . 6 . . . Parts Attached 93 | 3 2 6 10 1 13 . 4 1 1 10 . 7 1 1 20 1 2 10 Power 2 | . . . . . . . 1 . . . . . . . 1 . . . Engine . | . . . . . . . . . . . . . . . . . . . Core 2 | . . . . . . . 1 . . . . . . . 1 . . . Reactor . | . . . . . . . . . . . . . . . . . . . Propulsion 11 | . . 2 1 1 3 . 1 . . . . . . 1 1 . . 1 Treads . | . . . . . . . . . . . . . . . . . . . Leg 1 | . . . . . . . . . . . . . . . . . . 1 Wheel . | . . . . . . . . . . . . . . . . . . . Hover . | . . . . . . . . . . . . . . . . . . . Flight 10 | . . 2 1 1 3 . 1 . . . . . . 1 1 . . . Utility 30 | 1 . 1 1 . . . 2 1 1 6 . 3 1 . 10 1 . 2 Device 23 | 1 . . 1 . . . 1 1 1 6 . 1 1 . 8 1 . 1 Storage . | . . . . . . . . . . . . . . . . . . . Processor 1 | . . . . . . . . . . . . . . . . . . 1 Hackware 1 | . . . . . . . . . . . . 1 . . . . . . Protection 4 | . . 1 . . . . 1 . . . . 1 . . 1 . . . Artifact 1 | . . . . . . . . . . . . . . . 1 . . . Weapon 50 | 2 2 3 8 . 10 . . . . 4 . 4 . . 8 . 2 7 Energy Gun 16 | 1 2 2 8 . . . . . . . . . . . . . . 3 Energy Cannon 2 | . . 1 . . . . . . . . . . . . . . 1 . Ballistic Gun 1 | 1 . . . . . . . . . . . . . . . . . . Ballistic Cannon 31 | . . . . . 10 . . . . 4 . 4 . . 8 . 1 4 Launcher . | . . . . . . . . . . . . . . . . . . . Special Weapon . | . . . . . . . . . . . . . . . . . . . Impact Weapon . | . . . . . . . . . . . . . . . . . . . Slashing Weapon . | . . . . . . . . . . . . . . . . . . . Piercing Weapon . | . . . . . . . . . . . . . . . . . . . Special Melee Weapon . | . . . . . . . . . . . . . . . . . . . Unidentified Prototypes 8 | . . . . . 1 . . . . . . 5 . 2 . . . . Parts Lost . | . . . . . . . . . . . . . . . . . . . Power . | . . . . . . . . . . . . . . . . . . . Propulsion . | . . . . . . . . . . . . . . . . . . . Utility . | . . . . . . . . . . . . . . . . . . . Weapon . | . . . . . . . . . . . . . . . . . . . Highest Loss Streak . | . . . . . . . . . . . . . . . . . . . To Critical Strikes . | . . . . . . . . . . . . . . . . . . . Average Slot Usage (%) 70 | . 13 35 44 55 52 57 63 70 73 75 80 84 88 84 79 69 60 77 Core 2 | . . . . . . . 2 3 3 3 3 3 3 3 2 3 3 3 Leg 1 | . . . . . . . . . . . . . . . . 3 3 6 Flight 9 | . . 3 11 13 15 15 15 15 15 15 15 15 15 15 12 . . . Device 23 | . 3 3 4 7 7 7 8 12 16 23 30 30 30 30 28 30 30 33 Protection 3 | . . 2 3 3 3 3 4 7 7 6 3 6 6 3 2 3 3 3 Energy Gun 3 | . 5 17 17 30 9 . . . . . . . . . . . . 10 Ballistic Cannon 20 | . . . . . 15 30 30 30 30 25 26 25 26 26 25 26 15 14 Peak Build Rating 413 | 5 8 17 41 45 58 58 77 91 96 126 126 189 194 198 362 359 388 413 Average Rating 190 | 2 5 14 20 43 42 58 67 82 92 106 126 166 187 196 227 358 378 407 On Entrance 127 | . 5 8 17 41 45 58 58 77 91 96 126 126 186 194 198 355 359 387 Naked Turns . | . . . . . . . . . . . . . . . . . . . Heaviest Build 167 | 3 7 18 35 35 59 59 79 89 90 94 94 144 144 144 146 145 167 167 Greatest Support 1003 | 918 918 923 927 933 934 932 934 934 934 934 934 934 934 935 975 975 975 1003 Greatest Overweight (x) . | . . . . . . . . . . . . . . . . . . . Average Overweight (x) . | . . . . . . . . . . . . . . . . . . . Largest Inventory Capacity 211 | 209 209 209 209 209 209 209 209 209 209 209 209 209 209 209 211 211 211 211 Average Capacity 209 | 209 209 209 209 209 209 209 209 209 209 209 209 209 209 209 209 211 211 211 Most Carried 66 | . . . . . 7 4 7 21 21 33 33 38 38 43 62 61 64 66 Average Carried 36 | . . . . . 2 4 5 12 21 27 33 36 38 42 52 60 60 65 Final Capacity 211 | 209 209 209 209 209 209 209 209 209 209 209 209 209 209 209 211 211 211 211 Final Carried 66 | . . . . . 4 4 7 21 21 33 33 38 38 43 62 60 59 66 Class Distribution -------------------- 73% | Wizard-Scout 26% | Wizard-Sigix Dominant Class ---------------- Wizard-Scout | -10/Materials Wizard-Scout | -9/Materials Wizard-Scout | -8/Materials Wizard-Scout | -7/Factory Wizard-Scout | -7/DSF Wizard-Scout | -6/Factory Wizard-Scout | -5/Factory Wizard-Scout | -5/DSF Wizard-Scout | -4/Factory Wizard-Scout | -4/Armory Wizard-Scout | -3/Research Wizard-Scout | -3/Testing Wizard-Scout | -2/Research Wizard-Scout | -2/Quarantine Wizard-Scout | -2/Section 7 Wizard-Sigix | -1/Access Wizard-Sigix | -1/Command Wizard-Sigix | -1/Access_0 Resources | -11 -10 -9 -8 -7 -7 -6 -5 -5 -4 -4 -3 -3 -2 -2 -2 -1 -1 -1 ----------- Run | Yrd Mat Mat Mat Fac DSF Fac Fac DSF Fac Arm Res Tes Res Qua Sec Acc Com Ac0 Matter Collected -983395 | 12 227 317 526 . 323 103 85 231 933 2801 296 697 605 81 1716 -993948 445 1155 Remotely -985324 | . . . . . . . . 231 933 2801 296 697 605 73 1524 -994084 445 1155 Salvage Created 6092 | 68 233 505 521 . 108 197 . . 391 823 56 214 335 247 646 290 317 1141 Parts 282 | 6 12 28 17 . 6 18 . 2 17 42 . 10 10 15 33 10 16 40 Haulers Intercepted 1 | . . 1 . . . . . . . . . . . . . . . . Recyclers Shooed 1 | . . . . . . . . . . . . . . . . . 1 . Parts Field Recycled . | . . . . . . . . . . . . . . . . . . . Retrieved Matter . | . . . . . . . . . . . . . . . . . . . Parts Self-Destructed . | . . . . . . . . . . . . . . . . . . . Prevented . | . . . . . . . . . . . . . . . . . . . Kills | -11 -10 -9 -8 -7 -7 -6 -5 -5 -4 -4 -3 -3 -2 -2 -2 -1 -1 -1 ------- Run | Yrd Mat Mat Mat Fac DSF Fac Fac DSF Fac Arm Res Tes Res Qua Sec Acc Com Ac0 Combat Hostiles Destroyed 151 | . 4 13 9 . 4 12 . 3 9 34 1 6 7 6 20 6 6 11 Melee 1 | . . . . . . . . . . . . . . . 1 . . . Guns 32 | . 4 12 9 . . . . . . . . . . . . . . 7 Cannons 112 | . . 1 . . 3 9 . 3 9 34 1 6 7 6 19 5 5 4 AOE 3 | . . . . . . 3 . . . . . . . . . . . . Classes Destroyed 21 | 2 1 5 2 . 2 2 . . 1 4 . 1 . . 1 . . . Worker 4 | . . . . . . 1 . . 1 . . 1 . 1 . . . . Builder 5 | . . 2 1 . . . . . . . . . 1 1 . . . . Tunneler 2 | 1 . . 1 . . . . . . . . . . . . . . . Hauler 1 | . . 1 . . . . . . . . . . . . . . . . Recycler 8 | 1 . . . . . 1 . . 1 . . . 1 1 2 1 . . Operator 10 | . . . . . . 1 . . . 3 . 1 . 1 3 1 . . Watcher 7 | . . 1 . . . . . . 1 2 . 1 . . . 2 . . Swarmer 23 | . . 3 . . . 4 . . . 5 . . 4 . 3 . 4 . Cutter 3 | . . . . . 3 . . . . . . . . . . . . . Saboteur 2 | . . . . . . . . . . 2 . . . . . . . . Grunt 48 | . 4 4 7 . . 8 . 2 3 8 . 2 2 3 3 2 . . Brawler 6 | . . . 1 . . . . . . 3 . 1 1 . . . . . Duelist 3 | . . . 1 . . . . . . 2 . . . . . . . . Researcher 4 | . . . . . . . . . . . . 2 . . 2 . . . Sentry 22 | . . 6 . . . . . . 5 7 1 . . . 2 1 . . Demolisher 1 | . . . . . . . . . . 1 . . . . . . . . Hunter 6 | . . . . . . . . . . 2 . . . . 2 2 . . Programmer 11 | . . . . . . . . . . 2 . 3 . 3 2 1 . . Heavy 2 | . . . . . 1 . . 1 . . . . . . . . . . Behemoth 3 | . . . . . . . . . 1 . . . . . 1 . 1 . Armor Guard 2 | . . . . . . . . . . 2 . . . . . . . . S7 Guard 2 | . . . . . . . . . . . . . . . 2 . . . Enhanced Grunt 3 | . . . . . . . . . . . . . . . . . . 3 Enhanced Sentry 2 | . . . . . . . . . . . . . . . . . . 2 Enhanced Hunter 4 | . . . . . . . . . . . . . . . . . . 4 Tracker 1 | . . . . . . . . . . . . . . . 1 . . . Combat Programmer 2 | . . . . . . . . . . . . . . . 2 . . . Executioner 2 | . . . . . . . . . . . . . . . 2 . . . Best Kill Streak 22 | 2 4 16 11 . 3 13 . 2 6 22 1 5 9 7 7 8 5 4 Combat Bots Only 12 | . 4 12 9 . 3 10 . 2 6 10 1 4 7 3 6 2 5 4 Max Kills in Single Turn 5 | 1 1 2 2 . 2 5 . 1 3 2 1 2 3 2 3 1 1 1 Gunslinging . | . . . . . . . . . . . . . . . . . . . Exploded 3 | . . . . . . 3 . . . . . . . . . . . . Melee 1 | . . . . . . . . . . . . . . . 1 . . . Uniques/NPCs Destroyed 3 | . . . . . . . . . . . . . . . . . 1 2 MAIN.C (-1/Command) A6 (-1/Access_0) A2 (-1/Access_0) Combat | -11 -10 -9 -8 -7 -7 -6 -5 -5 -4 -4 -3 -3 -2 -2 -2 -1 -1 -1 -------- Run | Yrd Mat Mat Mat Fac DSF Fac Fac DSF Fac Arm Res Tes Res Qua Sec Acc Com Ac0 Hostile Shots Fired 1124 | . 21 41 35 . 14 20 . 4 31 170 . 23 45 33 179 172 135 201 Missed 546 | . 5 20 17 . 7 10 . 2 12 85 . 13 24 17 69 88 70 107 Damage Taken 2180 | . 82 119 126 . 123 80 . 68 26 396 . 41 100 107 541 78 104 189 Core 1583 | . 70 90 98 . 103 61 . 54 12 273 . 26 53 65 340 69 92 177 Absorbed by Shields 2032 | . . . . . . . . . 140 519 . 43 114 113 607 101 156 239 Redirected to Core 1194 | . 30 70 79 . 62 61 . 54 10 255 . 26 49 48 303 19 33 95 Redirected to Shielding 4 | . . . . . . . . . . 2 . 2 . . . . . . Ignored by Resistances 9605 | . 117 173 170 . 123 108 . 84 221 1094 . 88 349 246 1311 1240 1656 2625 Regen/Repaired (Parts) 388 | . . . . . . . . . . . . 4 35 31 306 3 4 5 Core Remaining (%) 95 | 100 99 99 98 . 98 97 . 97 . 96 . 95 . . 95 . . 79 Volleys Fired 299 | 2 7 21 9 1 7 11 1 4 13 64 1 12 7 9 60 21 11 38 Largest 8 | 2 3 7 7 8 8 8 8 8 8 8 7 7 7 7 7 7 7 7 Hottest 1111 | 60 125 354 354 596 596 352 352 352 352 352 313 363 363 363 388 388 1111 1111 Shots Fired 1945 | 4 16 123 63 8 44 88 8 32 104 435 7 83 49 62 365 135 56 263 Gun 316 | 4 16 107 54 8 16 . . . . . . . . . . . . 111 Cannon 1629 | . . 16 9 . 28 88 8 32 104 435 7 83 49 62 365 135 56 152 Launcher . | . . . . . . . . . . . . . . . . . . . Special . | . . . . . . . . . . . . . . . . . . . Kinetic 1638 | 2 7 21 9 . 28 88 8 32 104 435 7 83 49 62 365 135 52 151 Thermal 196 | 2 9 102 54 8 16 . . . . . . . . . . . 4 1 Explosive . | . . . . . . . . . . . . . . . . . . . Electromagnetic . | . . . . . . . . . . . . . . . . . . . Slashing 111 | . . . . . . . . . . . . . . . . . . 111 Robot Hit Streak 60 | 3 17 52 53 . 58 32 . 40 42 43 28 30 25 17 50 23 14 60 Robot Miss Streak 2 | . . 1 . . 2 1 . 1 1 2 . 1 1 1 1 1 1 2 Penetration Max 2 | . . . . . . . . . . . . . . 1 . . 2 2 Secondary Targets . | . . . . . . . . . . . . . . . . . . . Shots Hit Robots 1091 | 3 14 75 31 . 7 38 . 23 64 285 6 45 11 30 183 53 29 194 Core Hits 427 | 3 9 33 29 . 6 22 . 7 27 87 3 15 11 14 61 15 8 77 Critical Kills . | . . . . . . . . . . . . . . . . . . . Critical Parts Destroyed . | . . . . . . . . . . . . . . . . . . . Critical Strikes 55 | . . 1 2 . 1 2 . 1 7 13 1 3 2 5 10 2 3 2 Burn 3 | . . 1 2 . . . . . . . . . . . . . . . Blast 52 | . . . . . 1 2 . 1 7 13 1 3 2 5 10 2 3 2 Melee Attacks . | . . . . . . . . . . . . . . . . . . . Impact . | . . . . . . . . . . . . . . . . . . . Slashing . | . . . . . . . . . . . . . . . . . . . Piercing . | . . . . . . . . . . . . . . . . . . . Sneak Attacks . | . . . . . . . . . . . . . . . . . . . Combat Hostiles . | . . . . . . . . . . . . . . . . . . . Follow-up Attacks . | . . . . . . . . . . . . . . . . . . . Damage Inflicted 41931 | 38 172 1071 631 . 448 1848 . 847 2373 8043 258 2068 1006 1563 8302 2519 1429 9315 Guns 6424 | 38 168 973 557 . 188 . . . . . . . . . . . . 4500 Cannons 34308 | . . 98 74 . 260 1293 . 847 2373 8043 258 2068 1006 1476 8024 2472 1201 4815 Explosions 642 | . . . . . . 555 . . . . . . . 87 . . . . Melee . | . . . . . . . . . . . . . . . . . . . Ramming 557 | . 4 . . . . . . . . . . . . . 278 47 228 . Kinetic 34314 | 24 76 47 31 . 260 1293 . 847 2373 8043 258 2068 1006 1476 8024 2472 1201 4815 Thermal 1991 | 14 92 1024 600 . 188 73 . . . . . . . . . . . . Explosive 569 | . . . . . . 482 . . . . . . . 87 . . . . Electromagnetic . | . . . . . . . . . . . . . . . . . . . Impact . | . . . . . . . . . . . . . . . . . . . Slashing 4500 | . . . . . . . . . . . . . . . . . . 4500 Piercing . | . . . . . . . . . . . . . . . . . . . Highest Corruption 4 | . 1 . . . . . . . . 1 . . . 4 4 . . . Average Corruption 2 | . 1 . . . . . . . . 1 . . . 3 3 . . . Corruption Purged . | . . . . . . . . . . . . . . . . . . . Corruption Blocked . | . . . . . . . . . . . . . . . . . . . Effects 14 | . 1 . . . . . . . . 1 . . . 4 8 . . . Message Errors 1 | . . . . . . . . . . . . . . . 1 . . . Matter Fused 3 | . . . . . . . . . . . . . . 1 2 . . . Heat Flow Errors 2 | . . . . . . . . . . . . . . . 2 . . . Energy Discharges 2 | . . . . . . . . . . . . . . 1 1 . . . Data Loss (minor) 3 | . . . . . . . . . . 1 . . . 1 1 . . . Misfires 1 | . 1 . . . . . . . . . . . . . . . . . Weapon Failures 2 | . . . . . . . . . . . . . . 1 1 . . . Overload Shots . | . . . . . . . . . . . . . . . . . . . Overflow Damage 1207 | . . 4 . . 7 205 . 22 32 112 . 252 42 67 352 43 24 45 Projectiles 946 | . . 4 . . 7 21 . 22 32 112 . 252 42 64 297 26 22 45 Explosions 187 | . . . . . . 184 . . . . . . . 3 . . . . Melee 74 | . . . . . . . . . . . . . . . 55 17 2 . Knockbacks 151 | . . . . . 2 7 . 4 4 22 . 10 6 9 35 10 4 38 Impact 5 | . . . . . . . . . . . . . . . 2 1 2 . Kinetic 139 | . . . . . 2 6 . 4 4 21 . 10 5 7 32 8 2 38 Secondary 7 | . . . . . . 1 . . . 1 . . 1 2 1 1 . . Self-Inflicted Damage 166 | . 2 . . . . . . . . . . . . 62 102 . . . Shots 1 | . . . . . . . . . . . . . . 1 . . . . Rammed 8 | . 2 . . . . . . . . . . . . . 6 . . . Targets Rammed 16 | . 2 . . . . . . . . . . . . . 8 1 5 . Kicked 8 | . . . . . . . . . . . . . . . 2 1 5 . Crushed . | . . . . . . . . . . . . . . . . . . . Highest Temperature . | . . . . . . . . . . . . . . . . . . . Average Temperature . | . . . . . . . . . . . . . . . . . . . Received Heat Transfer 743 | . 108 150 162 . . 66 . . 6 122 . 12 41 11 23 18 . 24 Siege Activations . | . . . . . . . . . . . . . . . . . . . Robots Corrupted 3 | . . . . . . . . . . . . . . . 1 2 . . Combat Hostiles 1 | . . . . . . . . . . . . . . . . 1 . . Parts Fried 4 | . . . . . . . . . . . . . . . 1 3 . . Impact Corruptions 7 | . . . . . . . . . . . . . . . 4 2 1 . Robots Melted 1 | . . . . . 1 . . . . . . . . . . . . . Combat Hostiles 1 | . . . . . 1 . . . . . . . . . . . . . Parts Melted 18 | . . 7 5 . 5 1 . . . . . . . . . . . . Heat Transferred 3818 | 25 175 1959 1211 . 348 100 . . . . . . . . . . . . Parts Sabotaged 8 | . . . . . . . . . . 8 . . . . . . . . Parts Stolen . | . . . . . . . . . . . . . . . . . . . Parts Stripped . | . . . . . . . . . . . . . . . . . . . Power Chain Reactions . | . . . . . . . . . . . . . . . . . . . Alert | -11 -10 -9 -8 -7 -7 -6 -5 -5 -4 -4 -3 -3 -2 -2 -2 -1 -1 -1 ------- Run | Yrd Mat Mat Mat Fac DSF Fac Fac DSF Fac Arm Res Tes Res Qua Sec Acc Com Ac0 Peak Influence 2566 | 10 109 516 454 149 189 587 327 250 490 1221 458 514 480 496 1626 1920 2566 . Initial 1100 | . 4 32 155 149 80 73 211 176 97 176 428 193 217 202 209 1100 1100 . Average 587 | 5 43 224 318 149 124 293 228 213 235 813 437 394 381 348 636 1778 1533 . Maximum Alert Level 5 | . . 2 2 . . 2 1 1 2 4 2 2 2 2 5 5 5 . Low Security (%) 18 | 100 100 53 24 100 100 40 . 51 47 3 . . . . . . . . Level 1 22 | . . 20 34 . . 16 100 48 41 12 . 45 38 58 17 . . . Level 2 25 | . . 25 40 . . 43 . . 10 15 100 54 61 41 36 . . . Level 3 18 | . . . . . . . . . . 57 . . . . 44 . . . Level 4 4 | . . . . . . . . . . 10 . . . . . 1 33 . Level 5 4 | . . . . . . . . . . . . . . . . . 54 . High Security 1 | . . . . . . . . . . . . . . . . . 12 . Max Security 6 | . . . . . . . . . . . . . . . 2 98 . . Squads Dispatched 31 | . . 1 1 . 1 1 . 1 . 1 . 1 . . 11 13 . . Investigation 1 | . . . . . . 1 . . . . . . . . . . . . Extermination 2 | . . . . . . . . . . 1 . . . . 1 . . . Reinforcement 7 | . . 1 1 . 1 . . 1 . . . 1 . . 1 1 . . Assault 18 | . . . . . . . . . . . . . . . 6 12 . . Garrison . | . . . . . . . . . . . . . . . . . . . Intercept 3 | . . . . . . . . . . . . . . . 3 . . . Searches Triggered . | . . . . . . . . . . . . . . . . . . . Construction Impeded . | . . . . . . . . . . . . . . . . . . . Haulers Reinforced . | . . . . . . . . . . . . . . . . . . . Active Scanning Responses . | . . . . . . . . . . . . . . . . . . . Cargo Convoy Interrupts . | . . . . . . . . . . . . . . . . . . . Stealth | -11 -10 -9 -8 -7 -7 -6 -5 -5 -4 -4 -3 -3 -2 -2 -2 -1 -1 -1 --------- Run | Yrd Mat Mat Mat Fac DSF Fac Fac DSF Fac Arm Res Tes Res Qua Sec Acc Com Ac0 Distress Signals 24 | . . 1 . . . . . . . 1 . . . . . 1 21 . Communications Jammed 1270 | . . . . . . . . . . . . 13 . . 5 15 1237 . Distress Signals 1270 | . . . . . . . . . . . . 13 . . 5 15 1237 . Times Spotted 270 | . 6 17 13 . 4 13 . 2 11 39 . 12 6 8 37 28 50 24 Peak Tracking Total 33 | . 5 7 7 . 3 4 . 1 6 5 . 4 6 3 12 33 33 4 Tactical Retreats 9 | . . 1 . . . . . . . . . . . . . 4 4 . Traps | -11 -10 -9 -8 -7 -7 -6 -5 -5 -4 -4 -3 -3 -2 -2 -2 -1 -1 -1 ------- Run | Yrd Mat Mat Mat Fac DSF Fac Fac DSF Fac Arm Res Tes Res Qua Sec Acc Com Ac0 Traps Triggered 11 | . 1 . . . 3 1 . 1 . 1 . . 1 . . . 3 . Indirectly . | . . . . . . . . . . . . . . . . . . . Trap Hack Attempts . | . . . . . . . . . . . . . . . . . . . Triggered . | . . . . . . . . . . . . . . . . . . . Disarmed . | . . . . . . . . . . . . . . . . . . . Reprogrammed . | . . . . . . . . . . . . . . . . . . . Reused . | . . . . . . . . . . . . . . . . . . . Traps Extracted . | . . . . . . . . . . . . . . . . . . . Installed . | . . . . . . . . . . . . . . . . . . . Triggered . | . . . . . . . . . . . . . . . . . . . Machines | -11 -10 -9 -8 -7 -7 -6 -5 -5 -4 -4 -3 -3 -2 -2 -2 -1 -1 -1 ---------- Run | Yrd Mat Mat Mat Fac DSF Fac Fac DSF Fac Arm Res Tes Res Qua Sec Acc Com Ac0 Machines Disabled 71 | . . 2 1 . . 16 4 . 2 9 . 5 . 3 19 4 4 2 Max in Single Turn 10 | . . 1 1 . . 10 4 . 1 3 . 2 . 2 2 1 2 1 Garrison Access 1 | . . . 1 . . . . . . . . . . . . . . . Machines Repaired . | . . . . . . . . . . . . . . . . . . . Machines Dismantled . | . . . . . . . . . . . . . . . . . . . Machines Sabotaged . | . . . . . . . . . . . . . . . . . . . Overloaded Fab Kills . | . . . . . . . . . . . . . . . . . . . Hacking | -11 -10 -9 -8 -7 -7 -6 -5 -5 -4 -4 -3 -3 -2 -2 -2 -1 -1 -1 --------- Run | Yrd Mat Mat Mat Fac DSF Fac Fac DSF Fac Arm Res Tes Res Qua Sec Acc Com Ac0 Machines Accessed 22 | . . 1 2 2 . 1 2 . 2 1 1 1 2 . 6 . . 1 Terminals 20 | . . 1 1 2 . 1 2 . 2 1 1 1 2 . 6 . . . Fabricators . | . . . . . . . . . . . . . . . . . . . Repair Stations . | . . . . . . . . . . . . . . . . . . . Recycling Units . | . . . . . . . . . . . . . . . . . . . Scanalyzers . | . . . . . . . . . . . . . . . . . . . Garrison Access 1 | . . . 1 . . . . . . . . . . . . . . . Total Hacks 31 | . . 1 2 2 . 3 3 . 2 1 1 1 2 . 7 . . 6 Successful 31 | . . 1 2 2 . 3 3 . 2 1 1 1 2 . 7 . . 6 Failed . | . . . . . . . . . . . . . . . . . . . Catastrophic . | . . . . . . . . . . . . . . . . . . . Database Lockouts . | . . . . . . . . . . . . . . . . . . . Manual 10 | . . 1 1 1 . 3 1 . 1 . 1 . 1 . . . . . Terminals 24 | . . 1 1 2 . 3 3 . 2 1 1 1 2 . 7 . . . Fabricators . | . . . . . . . . . . . . . . . . . . . Repair Stations . | . . . . . . . . . . . . . . . . . . . Recycling Units . | . . . . . . . . . . . . . . . . . . . Scanalyzers . | . . . . . . . . . . . . . . . . . . . Garrison Access 1 | . . . 1 . . . . . . . . . . . . . . . Terminal Hacks 29 | . . 1 1 2 . 2 3 . 2 1 1 1 2 . 7 . . 6 Record 1 | . . . . . . . 1 . . . . . . . . . . . Open Door 8 | . . . . . . . . . . 1 . 1 1 . 5 . . . Open DSF 3 | . . . . 1 . . 1 . 1 . . . . . . . . . Level Access Points 6 | . . 1 1 1 . 1 1 . 1 . . . . . . . . . Branch Access Points 3 | . . . . . . 1 . . . . 1 . 1 . . . . . Activate Exoskeleton 2 | . . . . . . . . . . . . . . . 2 . . . Gate Test 138-A 1 | . . . . . . . . . . . . . . . . . . 1 Gate Test 138-B 1 | . . . . . . . . . . . . . . . . . . 1 Gate Test 138-C 4 | . . . . . . . . . . . . . . . . . . 4 Fabricator Hacks . | . . . . . . . . . . . . . . . . . . . Repair Station Hacks . | . . . . . . . . . . . . . . . . . . . Recycling Unit Hacks . | . . . . . . . . . . . . . . . . . . . Scanalyzer . | . . . . . . . . . . . . . . . . . . . Garrison Access Hacks 1 | . . . 1 . . . . . . . . . . . . . . . Seal Access 1 | . . . 1 . . . . . . . . . . . . . . . Unauthorized Hacks 1 | . . . . . . 1 . . . . . . . . . . . . Terminals 1 | . . . . . . 1 . . . . . . . . . . . . Assimilate 1 | . . . . . . 1 . . . . . . . . . . . . Fabricators . | . . . . . . . . . . . . . . . . . . . Repair Stations . | . . . . . . . . . . . . . . . . . . . Recycling Units . | . . . . . . . . . . . . . . . . . . . Scanalyzers . | . . . . . . . . . . . . . . . . . . . Garrison Access . | . . . . . . . . . . . . . . . . . . . Data Cores Recovered 3 | . . . . . . . . . . 1 . 1 . . 1 . . . Used . | . . . . . . . . . . . . . . . . . . . Hacking Detections 5 | . . . . . . 1 1 . . . . . 1 . 2 . . . Full Trace Events . | . . . . . . . . . . . . . . . . . . . Feedback Events . | . . . . . . . . . . . . . . . . . . . Feedback Blocked . | . . . . . . . . . . . . . . . . . . . Robot Schematics Acquired 1 | . . . . . . . . . . . . . . . 1 . . . Robots Built . | . . . . . . . . . . . . . . . . . . . Authchips . | . . . . . . . . . . . . . . . . . . . Time . | . . . . . . . . . . . . . . . . . . . Total Robot Build Rating . | . . . . . . . . . . . . . . . . . . . Part Schematics Acquired 9 | . . . . . . . . . . . . 5 . . 4 . . . Parts Built . | . . . . . . . . . . . . . . . . . . . Authchips . | . . . . . . . . . . . . . . . . . . . Time . | . . . . . . . . . . . . . . . . . . . Total Part Build Rating . | . . . . . . . . . . . . . . . . . . . Parts Repaired . | . . . . . . . . . . . . . . . . . . . Time . | . . . . . . . . . . . . . . . . . . . Parts Recycled . | . . . . . . . . . . . . . . . . . . . Recycled Matter . | . . . . . . . . . . . . . . . . . . . Retrieved Matter . | . . . . . . . . . . . . . . . . . . . Retrieved Components . | . . . . . . . . . . . . . . . . . . . Parts Scanalyzed . | . . . . . . . . . . . . . . . . . . . Part Schematics Acquired . | . . . . . . . . . . . . . . . . . . . Parts Damaged . | . . . . . . . . . . . . . . . . . . . Bothacking | -11 -10 -9 -8 -7 -7 -6 -5 -5 -4 -4 -3 -3 -2 -2 -2 -1 -1 -1 ------------ Run | Yrd Mat Mat Mat Fac DSF Fac Fac DSF Fac Arm Res Tes Res Qua Sec Acc Com Ac0 Used RIF Installer . | . . . . . . . . . . . . . . . . . . . Robots Hacked . | . . . . . . . . . . . . . . . . . . . Non-combat . | . . . . . . . . . . . . . . . . . . . Combat . | . . . . . . . . . . . . . . . . . . . Robot Hacks Applied . | . . . . . . . . . . . . . . . . . . . Relay Couplers Released . | . . . . . . . . . . . . . . . . . . . Fabnet Peak Effective % . | . . . . . . . . . . . . . . . . . . . Robots Rewired . | . . . . . . . . . . . . . . . . . . . Allies Hacked . | . . . . . . . . . . . . . . . . . . . Hacks Repelled . | . . . . . . . . . . . . . . . . . . . Allies | -11 -10 -9 -8 -7 -7 -6 -5 -5 -4 -4 -3 -3 -2 -2 -2 -1 -1 -1 -------- Run | Yrd Mat Mat Mat Fac DSF Fac Fac DSF Fac Arm Res Tes Res Qua Sec Acc Com Ac0 Total Allies 27 | . . . . . . . . . . . . . . . . 21 6 . Largest Group 13 | . . . . . . . . . . . . . . . . 13 4 . Highest-Rated Group 184 | . . . . . . . . . . . . . . . . 184 56 . Highest-Rated Ally 15 | . . . . . . . . . . . . . . . . 15 14 . Total Orders . | . . . . . . . . . . . . . . . . . . . Ally Attacks 138 | . . . . . . . . . . . . . . . . 127 11 . Total Damage 1868 | . . . . . . . . . . . . . . . . 1752 116 . Kills 8 | . . . . . . . . . . . . . . . . 8 . . Allies Corrupted 1 | . . . . . . . . . . . . . . . . 1 . . Allies Melted . | . . . . . . . . . . . . . . . . . . . Intel | -11 -10 -9 -8 -7 -7 -6 -5 -5 -4 -4 -3 -3 -2 -2 -2 -1 -1 -1 ------- Run | Yrd Mat Mat Mat Fac DSF Fac Fac DSF Fac Arm Res Tes Res Qua Sec Acc Com Ac0 Robot Analysis Total . | . . . . . . . . . . . . . . . . . . . Derelict Logs Recovered . | . . . . . . . . . . . . . . . . . . . Drone Launches . | . . . . . . . . . . . . . . . . . . . Drone Recoveries . | . . . . . . . . . . . . . . . . . . . Exploration | -11 -10 -9 -8 -7 -7 -6 -5 -5 -4 -4 -3 -3 -2 -2 -2 -1 -1 -1 ------------- Run | Yrd Mat Mat Mat Fac DSF Fac Fac DSF Fac Arm Res Tes Res Qua Sec Acc Com Ac0 Turns Passed 3454 | 31 99 154 113 38 101 117 61 70 169 461 30 200 147 172 688 181 244 378 Spaces Moved 5906 | 41 148 156 186 106 161 270 176 133 397 611 89 460 397 434 1158 313 394 276 Core 437 | 41 148 107 . . . . . . . . . . . . 141 . . . Treads . | . . . . . . . . . . . . . . . . . . . Legs 1187 | . . . . . . . . . . . . . . . 204 313 394 276 Wheels . | . . . . . . . . . . . . . . . . . . . Hover . | . . . . . . . . . . . . . . . . . . . Flight 4282 | . . 49 186 106 161 270 176 133 397 611 89 460 397 434 813 . . . Fastest Speed 27 | 50 50 37 32 29 27 27 27 29 29 29 29 29 29 29 29 30 30 30 Average Speed 32 | 50 50 45 32 30 27 27 27 29 29 29 29 29 29 29 31 30 30 64 Slowest Speed 70 | 50 50 50 37 32 29 27 29 29 29 29 29 29 29 29 50 30 30 70 Overloaded Moves . | . . . . . . . . . . . . . . . . . . . Propulsion Burnouts . | . . . . . . . . . . . . . . . . . . . Robots Hopped 36 | . . 1 3 . . 3 2 . 9 2 . 6 . 2 8 . . . Cave-ins Triggered . | . . . . . . . . . . . . . . . . . . . Teleports 2 | . . . . . . . . . . . . . . . . 1 1 . Exploration Rate (%) 36 | 3 40 20 24 7 96 14 8 97 16 62 4 78 19 58 72 17 28 29 Regions Visited 18 Branch Regions 6 Pre-discovered Areas . | . . . . . . . . . . . . . . . . . . . Known Exits Taken 16 | 1 1 1 1 1 . 1 1 . 1 1 1 1 1 1 1 1 1 . Unknown Exits Taken . | . . . . . . . . . . . . . . . . . . . Scrap Searched . | . . . . . . . . . . . . . . . . . . . Spaces Dug 466 | . . . . . . . 65 . . . . . 4 . . 7 . 390 Terrain Destroyed 2019 | . . 11 5 . 4 107 65 5 24 110 . 22 19 46 63 33 993 512 Melee . | . . . . . . . . . . . . . . . . . . . Projectile 1853 | . . 11 5 . 4 24 5 5 24 110 . 22 19 26 63 30 993 512 AOE 166 | . . . . . . 83 60 . . . . . . 20 . 3 . . Terrain Rammed . | . . . . . . . . . . . . . . . . . . . Walls Destroyed . | . . . . . . . . . . . . . . . . . . . Machines Disabled . | . . . . . . . . . . . . . . . . . . . Actions | -11 -10 -9 -8 -7 -7 -6 -5 -5 -4 -4 -3 -3 -2 -2 -2 -1 -1 -1 --------- Run | Yrd Mat Mat Mat Fac DSF Fac Fac DSF Fac Arm Res Tes Res Qua Sec Acc Com Ac0 Total 6418 | 45 158 181 208 107 194 277 180 151 401 695 89 481 405 448 1288 336 421 353 Wait 40 | . . . . . . . . . . . . 2 . . 10 . 4 24 Move 5819 | 40 147 153 179 105 160 263 171 132 379 606 88 449 396 429 1141 312 393 276 Hop 33 | . . 1 3 . . 3 2 . 8 2 . 4 . 2 8 . . . Pick Up 58 | . . . . . 6 . 2 14 . 12 . 3 . 4 13 . . 4 Fast Attach 77 | 3 2 6 10 1 3 . 3 1 1 10 . 6 1 2 25 . . 3 Attach 17 | . . . . . 6 . . . . . . . . . 2 2 3 4 Detach 11 | . . . . . . . . . . . . . . 1 4 . 5 1 Swap 9 | . . . . . 4 . 1 . . . . 1 . . . . . 3 Drop 24 | . . . 7 . 8 . . . . 1 . 4 1 1 2 . . . Fire 299 | 2 7 21 9 1 7 11 1 4 13 64 1 12 7 9 60 21 11 38 Melee . | . . . . . . . . . . . . . . . . . . . Ram 8 | . 2 . . . . . . . . . . . . . 6 . . . Kick 8 | . . . . . . . . . . . . . . . 2 1 5 . Crush . | . . . . . . . . . . . . . . . . . . . Escape Stasis . | . . . . . . . . . . . . . . . . . . . Rewire . | . . . . . . . . . . . . . . . . . . . Trap . | . . . . . . . . . . . . . . . . . . . Miscellaneous 15 | . . . . . . . . . . . . . . . 15 . . . Route ------- -11/Scrapyard -10/Materials (discovered 4 exits: *Mat x2 / *Min x2) -9/Materials (discovered 3 exits: *Mat x3) -8/Materials (discovered 3 exits: *Fac x3) -7/Factory (discovered 5 exits: Fac x4 / DSF) -7/DSF -6/Factory (discovered 6 exits: *Fac x4 / Low x2) -5/Factory (discovered 5 exits: Fac x4 / DSF) -5/DSF -4/Factory (discovered 6 exits: Res x4 / Ext / *Arm) -4/Armory (discovered 3 exits: *Res x2 / Lab) -3/Research (discovered 2 exits: *Tes x2) -3/Testing -2/Research (discovered 2 exits: *Qua x2) -2/Quarantine (discovered 2 exits: Acc / *Sec) -2/Section 7 -1/Access -1/Command (discovered 3 exits: Sur x2 / *Ac0) -1/Access_0 Subspace History --------- Turn | Location | Event 1 | -11/Scrapyard | Upgraded with Propulsion slot (x3) 1 | -11/Scrapyard | Upgraded with Utility slot (x12) 1 | -11/Scrapyard | Upgraded with Weapon slot (x7) 3 | -11/Scrapyard | Identified exit to Materials 3 | -11/Scrapyard | Discovered exit to Materials (range 16) 32 | -11/Scrapyard | Entered Materials 46 | -10/Materials | Identified exit to Mines 46 | -10/Materials | Discovered exit to Mines (range 15) 63 | -10/Materials | Discovered exit to Mines (range 15) 106 | -10/Materials | Identified exit to Materials 106 | -10/Materials | Discovered exit to Materials (range 16) 123 | -10/Materials | Discovered exit to Materials (range 15) 131 | -10/Materials | Entered another Materials area 133 | -9/Materials | Reached level 2 133 | -9/Materials | Reached level 3 167 | -9/Materials | Identified exit to Materials 220 | -9/Materials | Reached level 4 285 | -9/Materials | Entered another Materials area 287 | -8/Materials | Reached level 5 287 | -8/Materials | Reached level 6 287 | -8/Materials | Reached level 7 290 | -8/Materials | Destroyed 12 combat bots 290 | -8/Materials | Identified exit to Factory 309 | -8/Materials | Build established: Wizard-Scout 381 | -8/Materials | Destroyed 9 combat bots 398 | -8/Materials | Entered Factory 400 | -7/Factory | Reached level 8 400 | -7/Factory | Reached level 9 403 | -7/Factory | Identified exit to Factory 436 | -7/Factory | Identified exit to DSF 436 | -7/Factory | Entered DSF 436 | -7/DSF | Reached level 10 436 | -7/DSF | Discovered exit to Factory (range 31) 462 | -7/DSF | Additional patrols routed to DSF 511 | -7/DSF | Reached level 11 537 | -7/DSF | Entered Factory 539 | -6/Factory | Reached level 12 555 | -6/Factory | Reached level 13 584 | -6/Factory | Identified exit to Lower Caves 584 | -6/Factory | Identified exit to Factory 654 | -6/Factory | Entered another Factory area 656 | -5/Factory | Reached level 14 656 | -5/Factory | Reached level 15 656 | -5/Factory | Reached level 16 661 | -5/Factory | Identified exit to Factory 667 | -5/Factory | Destroyed 10 combat bots 715 | -5/Factory | Identified exit to DSF 715 | -5/Factory | Entered DSF 728 | -5/DSF | Additional patrols routed to DSF 751 | -5/DSF | Reached level 17 758 | -5/DSF | Discovered exit to Factory (range 16) 785 | -5/DSF | Entered Factory 786 | -4/Factory | Identified exit to Extension 786 | -4/Factory | Discovered exit to Extension (range 9) 787 | -4/Factory | Reached level 18 806 | -4/Factory | Identified exit to Research 819 | -4/Factory | Spotted B-86 Titan 828 | -4/Factory | Identified exit to Armory 828 | -4/Factory | Discovered exit to Armory (range 15) 842 | -4/Factory | Reached level 19 842 | -4/Factory | Destroyed B-86 Titan 954 | -4/Factory | Entered Armory 956 | -4/Armory | Reached level 20 1030 | -4/Armory | Spotted B-86 Titan 1039 | -4/Armory | Reached level 21 1053 | -4/Armory | Discovered exit to Research (range 16) 1093 | -4/Armory | Destroyed 10 combat bots 1170 | -4/Armory | Reached level 22 1176 | -4/Armory | Found Fusion Bomb Launcher 1177 | -4/Armory | Found Fusion Bomb Launcher 1178 | -4/Armory | Found Fusion Bomb Launcher 1179 | -4/Armory | Found Fusion Bomb Launcher 1181 | -4/Armory | Found Fusion Bomb Launcher 1182 | -4/Armory | Found Fusion Bomb Launcher 1185 | -4/Armory | Found Fusion Bomb Launcher 1186 | -4/Armory | Found Fusion Bomb Launcher 1187 | -4/Armory | Found Fusion Bomb Launcher 1189 | -4/Armory | Found Fusion Bomb Launcher 1190 | -4/Armory | Found Fusion Bomb Launcher 1192 | -4/Armory | Found Fusion Bomb Launcher 1217 | -4/Armory | Spotted Armor Guard 1217 | -4/Armory | Spotted Armor Guard 1254 | -4/Armory | Destroyed Armor Guard 1290 | -4/Armory | Destroyed Armor Guard 1306 | -4/Armory | Identified exit to Lab 1306 | -4/Armory | Discovered exit to Lab (range 16) 1316 | -4/Armory | Reached level 23 1344 | -4/Armory | Destroyed 8 combat bots 1346 | -4/Armory | Discovered exit to Research (range 16) 1415 | -4/Armory | Entered Research 1417 | -3/Research | Reached level 24 1422 | -3/Research | Identified exit to Testing 1445 | -3/Research | Entered Testing 1447 | -3/Testing | Reached level 25 1468 | -3/Testing | Reached level 26 1473 | -3/Testing | Found Prototype Protection 1473 | -3/Testing | Identified SHELL Armor 1475 | -3/Testing | Found Prototype Protection 1476 | -3/Testing | Found Prototype Protection 1477 | -3/Testing | Found Prototype Protection 1519 | -3/Testing | Spotted Striker 1528 | -3/Testing | Spotted Striker 1533 | -3/Testing | Scanned by Researcher 1597 | -3/Testing | Found Prototype Hackware 1597 | -3/Testing | Identified Ghost Barrier 1610 | -3/Testing | Identified exit to Research 1610 | -3/Testing | Discovered exit to Research (range 15) 1645 | -3/Testing | Entered Research 1647 | -2/Research | Reached level 27 1698 | -2/Research | Reached level 28 1723 | -2/Research | Destroyed 7 combat bots 1759 | -2/Research | Identified exit to Quarantine 1792 | -2/Research | Entered Quarantine 1794 | -2/Quarantine | Reached level 29 1805 | -2/Quarantine | Found Alien Artifact 1805 | -2/Quarantine | Identified Core Reset Matrix 1805 | -2/Quarantine | Used Core Reset Matrix 1809 | -2/Quarantine | Detected hypermatrix surge 1809 | -2/Quarantine | Sensed 14 artifacts in vicinity 1816 | -2/Quarantine | Found Transdimensional Reconstructor 1822 | -2/Quarantine | Found Transdimensional Reconstructor 1823 | -2/Quarantine | Found Hpw. Transdimensional Reconstructor 1825 | -2/Quarantine | Found Hpw. Transdimensional Reconstructor 1841 | -2/Quarantine | Reached level 30 1864 | -2/Quarantine | Identified exit to Access 1864 | -2/Quarantine | Discovered exit to Access (range 15) 1892 | -2/Quarantine | Cryocooling Duct disabled 1907 | -2/Quarantine | Ambient heat levels rising (+20) 1907 | -2/Quarantine | Non-combat units ordered to evacuate 1940 | -2/Quarantine | Spotted Fortress 1959 | -2/Quarantine | Identified exit to Section 7 1959 | -2/Quarantine | Discovered exit to Section 7 (range 16) 1964 | -2/Quarantine | Entered Section 7 1965 | -2/Section 7 | Sensed 23 artifacts in vicinity 2005 | -2/Section 7 | Found Core Reset Matrix 2009 | -2/Section 7 | Sensed 22 artifacts in vicinity 2022 | -2/Section 7 | Found Microwarp Drive 2058 | -2/Section 7 | Reached level 31 2081 | -2/Section 7 | Spotted S7 Guard 2098 | -2/Section 7 | Destroyed S7 Guard 2111 | -2/Section 7 | Found Core Physics Calibrator 2128 | -2/Section 7 | Discovered exit to Access (range 16) 2148 | -2/Section 7 | Spotted S7 Guard 2149 | -2/Section 7 | Destroyed S7 Guard 2159 | -2/Section 7 | Found Integrated Thermoelectric Network 2159 | -2/Section 7 | Installed Integrated Thermoelectric Network, gained heat-energy exchange potential 2192 | -2/Section 7 | Found Spacefold Activator 2199 | -2/Section 7 | Spotted Executioner 2199 | -2/Section 7 | Spotted Executioner 2206 | -2/Section 7 | Spotted Striker 2206 | -2/Section 7 | Spotted Striker 2211 | -2/Section 7 | Destroyed Executioner 2215 | -2/Section 7 | Destroyed Executioner 2221 | -2/Section 7 | Found Terrabomb 2225 | -2/Section 7 | Found Transdimensional Reconstructor 2226 | -2/Section 7 | Found Transdimensional Reconstructor 2228 | -2/Section 7 | Found Hpw. Transdimensional Reconstructor 2233 | -2/Section 7 | Spotted Executioner 2239 | -2/Section 7 | Found Matter Drive 2246 | -2/Section 7 | Found Drained L-Cannon 2248 | -2/Section 7 | Spotted Executioner 2270 | -2/Section 7 | Spotted Striker 2270 | -2/Section 7 | Spotted Striker 2272 | -2/Section 7 | Found Sigix Sheargun 2310 | -2/Section 7 | Spotted Alpha 7 2311 | -2/Section 7 | Spotted B-99 Colossus 2330 | -2/Section 7 | Spotted Alpha 7 2342 | -2/Section 7 | Found Core Expander 2355 | -2/Section 7 | Found LRC Storage 2355 | -2/Section 7 | Installed LRC Storage, increased inventory capacity (+2) 2357 | -2/Section 7 | Found LRC Matter Compressor 2357 | -2/Section 7 | Installed LRC Matter Compressor, increased matter storage capacity (+125) 2368 | -2/Section 7 | Scanned by Researcher 2369 | -2/Section 7 | Intercept squad dispatched 2377 | -2/Section 7 | Spotted Tracker 2377 | -2/Section 7 | Spotted Tracker 2383 | -2/Section 7 | Found Integrity Redistributor 2383 | -2/Section 7 | Used Integrity Redistributor, redistributed integrity from core (-39) 2385 | -2/Section 7 | Found Integrity Redistributor 2385 | -2/Section 7 | Used Integrity Redistributor, redistributed integrity from core (-3) 2395 | -2/Section 7 | Spotted Combat Programmer 2397 | -2/Section 7 | Destroyed Tracker 2402 | -2/Section 7 | Spotted Combat Programmer 2413 | -2/Section 7 | Destroyed Combat Programmer 2417 | -2/Section 7 | Destroyed Combat Programmer 2492 | -2/Section 7 | Destroyed B-99 Colossus 2555 | -2/Section 7 | Integrated with Sigix Exoskeleton 2555 | -2/Section 7 | Reached level 32 2555 | -2/Section 7 | Upgraded with Propulsion slot (x1) 2555 | -2/Section 7 | Upgraded with Utility slot (x10) 2555 | -2/Section 7 | Upgraded with Weapon slot (x6) 2652 | -2/Section 7 | Entered Access 2652 | -1/Access | Warped through subspace 2654 | -1/Access | Reached level 33 2657 | -1/Access | Emitted hypermatrix ping 2662 | -1/Access | Assembled emerged from beneath the floor 2732 | -1/Access | Assembled emerged from beneath the floor 2747 | -1/Access | Assembled emerged from beneath the floor 2753 | -1/Access | Identified exit to Command 2753 | -1/Access | Discovered exit to Command (range 18) 2800 | -1/Access | Spotted B-99 Colossus 2800 | -1/Access | Spotted B-99 Colossus 2800 | -1/Access | Reached level 34 2832 | -1/Access | Spotted Executioner 2833 | -1/Access | Entered Command 2836 | -1/Command | Spotted B-99 Colossus 2838 | -1/Command | Emitted hypermatrix ping 2843 | -1/Command | Assembled emerged from beneath the floor 2845 | -1/Command | Build established: Wizard-Sigix 2867 | -1/Command | Destroyed B-99 Colossus 2889 | -1/Command | Lost 4 allies 2910 | -1/Command | Spotted M Guard 2910 | -1/Command | Spotted M Guard 2910 | -1/Command | Spotted Combat Programmer 2910 | -1/Command | Spotted Combat Programmer 2914 | -1/Command | Fired Drained L-Cannon 2914 | -1/Command | Reached level 35 2914 | -1/Command | 0b10 Conduit disabled 2934 | -1/Command | Met MAIN.C 2934 | -1/Command | Fired Drained L-Cannon 2934 | -1/Command | All MAIN.C guards destroyed 2934 | -1/Command | High security lockdown imminent 2962 | -1/Command | Fired Drained L-Cannon 2962 | -1/Command | Reached level 36 2962 | -1/Command | MAIN.C's shell transforms into a squad of autonomous robots 2962 | -1/Command | Spotted M Shell/Def 2962 | -1/Command | Spotted M Shell/Atk 2962 | -1/Command | Spotted M Shell/Def 2962 | -1/Command | Spotted M Shell/Atk 2962 | -1/Command | Spotted M Shell/Atk 2962 | -1/Command | Spotted M Shell/Def 2962 | -1/Command | Spotted M Shell/Def 2965 | -1/Command | MAIN.C activated Command garrisons 2982 | -1/Command | Fired Drained L-Cannon 2982 | -1/Command | Destroyed MAIN.C 2982 | -1/Command | Reached level 37 3007 | -1/Command | Identified Lgt. Regenerative Plating 3007 | -1/Command | Identified Med. Regenerative Plating 3007 | -1/Command | Identified Hvy. Regenerative Plating 3007 | -1/Command | Identified exit to Surface 3007 | -1/Command | Discovered exit to Surface (range 65) 3007 | -1/Command | Discovered exit to Surface (range 68) 3007 | -1/Command | Extracted map data and part IDs from MAIN.C's data core 3035 | -1/Command | Spotted B-99 Colossus 3075 | -1/Command | Warped through subspace to slip node 3075 | -1/Command | Identified exit to Access_0 3075 | -1/Command | Discovered exit to Access_0 (range 4) 3077 | -1/Command | Entered Access_0 3078 | -1/Access_0 | Sensed 3 artifacts in vicinity 3078 | -1/Access_0 | Met Architect 3080 | -1/Access_0 | Fired Drained L-Cannon 3115 | -1/Access_0 | Architect warped through subspace 3144 | -1/Access_0 | Found Exp. EM Disruption Field 3150 | -1/Access_0 | Found Exp. Core Analyzer 3157 | -1/Access_0 | Architect warped through subspace 3191 | -1/Access_0 | Architect warped through subspace 3221 | -1/Access_0 | Architect warped through subspace 3242 | -1/Access_0 | Architect warped through subspace 3265 | -1/Access_0 | Architect warped through subspace 3281 | -1/Access_0 | A6 warped into view 3299 | -1/Access_0 | Destroyed A6 3306 | -1/Access_0 | Architect warped through subspace 3330 | -1/Access_0 | Architect warped through subspace 3365 | -1/Access_0 | Architect warped through subspace 3386 | -1/Access_0 | Destroyed A2 3394 | -1/Access_0 | Extracted Singularity Gate Test 138-C access codes from A2's data core 3400 | -1/Access_0 | Architect warped through subspace 3441 | -1/Access_0 | Architect warped through subspace 3455 | -1/Access_0 | Started Test 138-B, establishing a local singularity 3455 | -1/Access_0 | Started Test 138-C, cascade imminent 3455 | *** | Destroyed Tau Ceti IV! Last Messages --------------- 03440_ Quantum Shear penetrates Architect. 03440_ Architect knocked back. Architect warps through subspace. 03455_ Connecting with Gate Controls... >>Gate Test 138-A Running Singularity Gate diagnostics... All systems nominal. >>Gate Test 138-B Preparing Singularity Gate activation... Stable singularity established. >>Gate Test 138-C Initiating Test 138-C... Warning: Experimental formulas incomplete. Potential effects include instability. Repeat command to confirm test. >>Gate Test 138-C Initiating Test 138-C... Applying incomplete calculations.... INSTABILITY DETECTED, CASCADE IMMINENT. [Achievement: Stardust] Map ----- +----------------------------------------------------+ | ?????????????????# #???????????????????????? | | ?????????????????# #???????????????????????? | | ?????????????????# #???????????????????????? | | ?????????????????# #???????????????????????? | | ?????????????????# #???????????????????????? | | ?????????????????# #???????????????????????? | | ?????????????????# #?????????????????#?????? | | ?????????????????# #???????????????? ##????? | | ?????????????????# ######??????????? #????? | | ???????????????### #########???????# #?##?# | | ??????????????#### ###########?# ## ? ###### | | ????????????###### ######### ## ###### | | ???????????##""""" """""#### ?###### | | ??????????####"""" """"##### ?###### | | ?????????#####" "####### ###### | | ????????#####"" ""####### ###### | | ????????#####"" ""####### ###### | | ???????#######" "######## ##### | | ??????########" "######### ### ##### | | ??????########" "######### ########### | | ??????########" "######## ########### | | ?????#########" "######## ########### | | ?????########"" ""###### ############ | | ?????########"" ""##### ############ | | ?????#########" "### #########"### | | ?????#########"""" XA""### ######## """ | | ????#########""""" """""# #######" | | ????############## ###### | | ?????############# ##### | | ????############## ###" ######" "" | | ????############## " " ####### """" """ | | ?????############# "### ###### ####"### | | ?????############# ##### ##### ######## | | ?????########## ; ###### ##### ######## | | ?????########## ## ####### ##### ######## | | ?????############# ######## ##### ######## | | ??????############ ######## ### ######## | | ??????############ ######### #### ######## | | ??????############ ######### ##### ######## | | ???????####"""# ######## ##### ######## | | ????????##""!""" ## ##### ######## | | ????????##"==="" ## ##### ######## | | ?????????#"!=!"" #### # ##### ######## | | ??????????""!""" #### #### ######## | | ???????????"""# ### ### ######## | | ?????????????## #### ### ######## | | ??????????????## ## ## ### ?# #??????? | | ???????????????## ### ### ##### ??# #??????? | | ????????????????##??# #?# ?????? ?# #??????? | | ????????????????????# ??????????? ?# #??????? | +----------------------------------------------------+ Best States ------------- Heat Dissipation 1196 Energy Generation 1835 Energy Capacity 16115 Matter Stores 5025 Matter Capacity 5025 Sight Range 80 Robot Scan Range 196 Terrain Scan Range 16 Terrain Scan Density 8610 Jamming Range 16 Cloak Strength 4 Armor Coverage 900 Resistance: KI 85 Resistance: TH 85 Resistance: EX 85 Resistance: EM 100 Resistance: I 85 Resistance: S 85 Resistance: P 85 Power Shielding 33 Phase Shifting 15 Evasion (%) 84 Core Analysis 8 Offensive Hacking 1055 Defensive Hacking 570 Item Schematics ----------------- Imp. Matter Compressor | -2/Section 7 | Archive Centrium Greatsword | -2/Section 7 | Archive Lgt. Antimatter Cannon | -2/Section 7 | Archive Robot Schematics ------------------ A-15 Conveyor | -2/Section 7 | Archive Fabricated ------------ Nothing Alien Tech Used ----------------- Core Reset Matrix Core Physics Calibrator Integrated Thermoelectric Network Core Expander LRC Storage LRC Matter Compressor Integrity Redistributor Sigix Exoskeleton Sigix Sheargun High-powered Transdimensional Reconstructor Drained L-Cannon Transdimensional Reconstructor Achievements -------------- Cannon Specialist Stardust Challenges ------------ None RPGLIKE | -11 -10 -9 -8 -7 -7 -6 -5 -5 -4 -4 -3 -3 -2 -2 -2 -1 -1 -1 --------- Run | Yrd Mat Mat Mat Fac DSF Fac Fac DSF Fac Arm Res Tes Res Qua Sec Acc Com Ac0 Levels Raised 36 | . . 3 3 2 2 2 3 1 2 4 1 2 2 2 2 2 3 . XP Earned 61468 | 6000 450 5321 4407 3292 1774 4094 3292 1600 3889 5413 2159 2415 2809 2894 3173 2580 4580 1326 XP Spent -959314515 | -971332315 . . . . . . . . . . . . . . 76000 . 11941800 . Upgrades 2526 | 2193 . . . . . . . . . . . . . . 17 . 316 . Propulsion Slot 4 | 3 . . . . . . . . . . . . . . 1 . . . Utility Slot 22 | 12 . . . . . . . . . . . . . . 10 . . . Weapon Slot 13 | 7 . . . . . . . . . . . . . . 6 . . . Core Integrity 379 | 379 . . . . . . . . . . . . . . . . . . Heat Dissipation 181 | 181 . . . . . . . . . . . . . . . . . . Energy Generation 353 | 192 . . . . . . . . . . . . . . . . 161 . Energy Storage 314 | 159 . . . . . . . . . . . . . . . . 155 . Matter Storage 92 | 92 . . . . . . . . . . . . . . . . . . Mass Support 183 | 183 . . . . . . . . . . . . . . . . . . Inventory Capacity 209 | 209 . . . . . . . . . . . . . . . . . . Sight Range 64 | 64 . . . . . . . . . . . . . . . . . . Sensor Range 90 | 90 . . . . . . . . . . . . . . . . . . Terrain Scan Density 86 | 86 . . . . . . . . . . . . . . . . . . Ranged Accuracy 187 | 187 . . . . . . . . . . . . . . . . . . Melee Accuracy 8 | 8 . . . . . . . . . . . . . . . . . . Hack Attack % 207 | 207 . . . . . . . . . . . . . . . . . . Hack Defense % 110 | 110 . . . . . . . . . . . . . . . . . . KI Resistance % 4 | 4 . . . . . . . . . . . . . . . . . . TH Resistance % 4 | 4 . . . . . . . . . . . . . . . . . . EX Resistance % 4 | 4 . . . . . . . . . . . . . . . . . . KI Damage % 4 | 4 . . . . . . . . . . . . . . . . . . TH Damage % 4 | 4 . . . . . . . . . . . . . . . . . . EX Damage % 4 | 4 . . . . . . . . . . . . . . . . . . Protomatter Created 1935 | . . 228 110 . . 200 . 42 172 370 . 66 73 150 336 146 42 . Integrity Restored 345 | . . . . . . . . . . . . . . . 345 . . . Core 345 | . . . . . . . . . . . . . . . 345 . . . Protomatter Decayed 5336 | . . 149 110 . . 38 . . 63 370 . 66 73 89 161 237 3980 . Game ------ Seed DroneServoShovel Manual? 0 Play Time 01:07:47 Cumulative 62.7 hours Start 2024.08.24 @ 11:11:34 End 2024.08.24 @ 12:22:15 Sessions 1 Manual Loads 0 Difficulty Explorer Special Mode Winter2019/RPGLIKE Game No. 58 Rogue 0 Adventurer 5 Explorer 53 Win Type 5 Total 16 Types 7/3/2/2/0/1/1/0/0 Lore% 43 Gallery% 60 Achievement% 71 Wizard Run 0 Options --------- Layout 0 ASCII 0 Keyboard 0 Movement Mouse Keybinds 0 Fullscreen 2 Font 18/SmallcapsGlow Map View 76x50 Zoom Use 54% Tactical HUD 1 Map Filters NONE Filters NONE Steam 1 RUN: 36d3a024-4fdd-49b8-8994-a39f1960f7ee